Workbook

Sheet Sheet1
A1: ابو جبيهة | C1: امير العبد | D1: الابيض | P1: التاريخ
A2: ابو حمد قبقبة | C2: اسماعيل مطر | D2: الجيلي | P2: المحطة
A3: ابوحمد الطواحين | C3: احمد عبدالله | D3: بورتسودان | P3: الوكيل
A4: الابيض | C4: حمزه الطاهر | D4: عطبرة | P4: بنزين
A5: الاضية | C5: شركة BZ | P5: جازولين
A6: الترتر | C6: شركة البيدي | P6: جازولين تجاري
A7: الخندق | C7: عبد الباقي ابراهيم | P7: جاولين زراعي
A8: الخناق | C8: عبدالرحيم محمد | P8: مستودع
A9: الدامر | C9: علي عوض الكريم
A10: الدبب | C10: عماد خلف الله
A11: الدبيبات | C11: فضل الله عمر عنان
A12: الدلنج | C12: فضل الله محمد احمد
A13: الدويم | C13: فيصل محمود
A14: الروجل | C14: محمد الحافظ
A15: العباسية | C15: محمد عبداللطيف
A16: العبيدية2 | C16: محمد علي عنان
A17: الفولة | C17: مطر محمد مطر
A18: الليري 2 | C18: معتصم عبدالرحمن
A19: المجلد | C19: معتصم محمد عمر
A20: النهود | C20: نافع اسماعيل
A21: ام روابة | C21: نور البادية
A22: بابنوسة | C22: ياسر علي
A23: تلوجريب
A24: تلودي
A25: رشاد
A26: سودري
A27: عبري
A28: غرب بارا
A29: كالوقي2
A30: ود بندة

Sheet Data
A1: Total | E1: =SUBTOTAL(109,E3:E982) -> 1862500 | F1: =SUBTOTAL(109,F3:F982) -> 8593264 | G1: =SUBTOTAL(109,G3:G982) -> 38220293 | I1: =SUBTOTAL(103,I3:I982) -> 19
A2: رقم الصف | B2: التاريخ | C2: المحطة | D2: الوكيل | E2: بنزين | F2: جازولين | G2: جازولين تجاري | H2: جاولين زراعي | I2: مستودع
A3: =IF(B3<>"",MAX($A$2:A2)+3,"") -> 3 | B3: 2018-11-01 | C3: المجلد | D3: عماد خلف الله | E3: 90000 | F3: 45000 | I3: الجيلي
A4: =IF(B4<>"",MAX($A$2:A3)+1,"") -> 4 | B4: 2018-11-01 | C4: كالوقي2 | D4: عماد خلف الله | H4: 54000 | I4: الجيلي
A5: =IF(B5<>"",MAX($A$2:A4)+1,"") -> 5 | B5: 2018-11-01 | C5: الابيض | D5: عماد خلف الله | F5: 45000 | I5: الجيلي
A6: =IF(B6<>"",MAX($A$2:A5)+1,"") -> 6 | B6: 2018-11-01 | C6: الفولة | D6: نافع اسماعيل | F6: 45000 | I6: الجيلي
A7: =IF(B7<>"",MAX($A$2:A6)+1,"") -> 7 | B7: 2018-11-03 | C7: المجلد | D7: عماد خلف الله | E7: 45000 | I7: الجيلي
A8: =IF(B8<>"",MAX($A$2:A7)+1,"") -> 8 | B8: 2018-11-03 | C8: الدبب | D8: عماد خلف الله | E8: 45000 | I8: الجيلي
A9: =IF(B9<>"",MAX($A$2:A8)+1,"") -> 9 | B9: 2018-11-03 | C9: النهود | D9: محمد الحافظ | F9: 27000 | I9: الجيلي
A10: =IF(B10<>"",MAX($A$2:A9)+1,"") -> 10 | B10: 2018-11-03 | C10: ام روابة | D10: اسماعيل مطر | E10: 58500 | I10: الجيلي
A11: =IF(B11<>"",MAX($A$2:A10)+1,"") -> 11 | B11: 2018-11-04 | C11: المجلد | D11: عماد خلف الله | E11: 45000 | I11: الجيلي
A12: =IF(B12<>"",MAX($A$2:A11)+1,"") -> 12 | B12: 2018-11-04 | C12: الخندق | D12: فيصل محمود | E12: 26200 | I12: الجيلي
A13: =IF(B13<>"",MAX($A$2:A12)+1,"") -> 13 | B13: 2018-11-04 | C13: سودري | D13: محمد عبداللطيف | F13: 27450 | I13: الجيلي
A14: =IF(B14<>"",MAX($A$2:A13)+1,"") -> 14 | B14: 2018-11-04 | C14: الاضية | D14: عبد الباقي ابراهيم | F14: 27000 | I14: الجيلي
A15: =IF(B15<>"",MAX($A$2:A14)+1,"") -> 15 | B15: 2018-11-05 | C15: المجلد | D15: عماد خلف الله | F15: 47250 | I15: الجيلي
A16: =IF(B16<>"",MAX($A$2:A15)+1,"") -> 16 | B16: 2018-11-05 | C16: كالوقي2 | D16: عماد خلف الله | H16: 81900 | I16: الجيلي
A17: =IF(B17<>"",MAX($A$2:A16)+1,"") -> 17 | B17: 2018-11-05 | C17: العبيدية2 | D17: معتصم محمد عمر | E17: 45000
A18: =IF(B18<>"",MAX($A$2:A17)+1,"") -> 18 | B18: 2018-11-06 | C18: رشاد | D18: عماد خلف الله | F18: 54000
A19: =IF(B19<>"",MAX($A$2:A18)+1,"") -> 19 | B19: 2018-11-06 | C19: الدبيبات | D19: عماد خلف الله | E19: 45000
A20: =IF(B20<>"",MAX($A$2:A19)+1,"") -> 20 | B20: 2018-11-06 | C20: الابيض | D20: عماد خلف الله | F20: 45000
A21: =IF(B21<>"",MAX($A$2:A20)+1,"") -> 21 | B21: 2018-11-07 | C21: العبيدية2 | D21: معتصم محمد عمر | F21: 45000
A22: =IF(B22<>"",MAX($A$2:A21)+1,"") -> 22 | B22: 2018-07-11 | F22: 45005
A23: =IF(B23<>"",MAX($A$2:A22)+1,"") -> 23 | B23: 2018-11-07 | C23: غرب بارا | D23: محمد عبداللطيف | E23: 27000 | F23: 27000
A24: =IF(B24<>"",MAX($A$2:A23)+1,"") -> 24 | B24: 2018-11-07 | C24: الابيض | D24: نور البادية | F24: 45000
A25: =IF(B25<>"",MAX($A$2:A24)+1,"") -> 25 | B25: 2018-11-08 | C25: الدلنج | F25: 27000
A26: =IF(B26<>"",MAX($A$2:A25)+1,"") -> 26 | B26: 2018-11-08 | C26: تلودي | F26: 28350
A27: =IF(B27<>"",MAX($A$2:A26)+1,"") -> 27 | B27: 2018-11-08 | C27: رشاد | E27: 27000 | F27: 27000
A28: =IF(B28<>"",MAX($A$2:A27)+1,"") -> 28 | B28: 2018-11-08 | C28: الدبيبات | F28: 45000
A29: =IF(B29<>"",MAX($A$2:A28)+1,"") -> 29 | B29: 2018-11-08 | C29: الدلنج | D29: اسماعيل مطر | E29: 58500
A30: =IF(B30<>"",MAX($A$2:A29)+1,"") -> 30 | B30: 2018-11-10 | C30: الدلنج | E30: 27000
A31: =IF(B31<>"",MAX($A$2:A30)+1,"") -> 31 | B31: 2018-11-10 | C31: تلودي | F31: 27000
A32: =IF(B32<>"",MAX($A$2:A31)+1,"") -> 32 | B32: 2018-11-10 | C32: الدبيبات | F32: 45000
A33: =IF(B33<>"",MAX($A$2:A32)+1,"") -> 33 | B33: 2018-11-10 | C33: كالوقي2 | F33: 27000
A34: =IF(B34<>"",MAX($A$2:A33)+1,"") -> 34 | B34: 2018-11-10 | C34: ابوحمد الطواحين | F34: 26200
A35: =IF(B35<>"",MAX($A$2:A34)+1,"") -> 35 | B35: 2018-11-10 | C35: ابو حمد قبقبة | F35: 27000
A36: =IF(B36<>"",MAX($A$2:A35)+1,"") -> 36 | B36: 2018-11-10 | C36: الخناق | F36: 36000
A37: =IF(B37<>"",MAX($A$2:A36)+1,"") -> 37 | B37: 2018-11-10 | C37: الابيض فتحي | E37: 49045
A38: =IF(B38<>"",MAX($A$2:A37)+1,"") -> 38 | B38: 2018-11-10 | C38: ام روابة | D38: اسماعيل مطر | F38: 58500
A39: =IF(B39<>"",MAX($A$2:A38)+1,"") -> 39 | B39: 2018-11-11 | C39: الليري 2 | E39: 27000
A40: =IF(B40<>"",MAX($A$2:A39)+1,"") -> 40 | B40: 2018-11-11 | C40: سودري | E40: 27000
A41: =IF(B41<>"",MAX($A$2:A40)+1,"") -> 41 | B41: 2018-11-11 | C41: عبري | F41: 36000
A42: =IF(B42<>"",MAX($A$2:A41)+1,"") -> 42 | B42: 2018-11-11 | C42: النهود | D42: محمد الحافظ | E42: 9000
A43: =IF(B43<>"",MAX($A$2:A42)+1,"") -> 43 | B43: 2018-11-11 | C43: النهود | D43: احمد محمد يس | F43: 27000
A44: =IF(B44<>"",MAX($A$2:A43)+1,"") -> 44 | B44: 2018-11-11 | C44: ود بندة | E44: 18000
A45: =IF(B45<>"",MAX($A$2:A44)+1,"") -> 45 | B45: 2018-11-12 | C45: العباسية | F45: 45000
A46: =IF(B46<>"",MAX($A$2:A45)+1,"") -> 46 | B46: 2018-11-12 | C46: العبيدية2 | E46: 45000
A47: =IF(B47<>"",MAX($A$2:A46)+1,"") -> 47 | B47: 2018-11-12 | C47: ابوحمد الطواحين | F47: 26200
A48: =IF(B48<>"",MAX($A$2:A47)+1,"") -> 48 | B48: 2018-11-12 | C48: ابو حمد قبقبة | F48: 27000
A49: =IF(B49<>"",MAX($A$2:A48)+1,"") -> 49 | B49: 2018-11-12 | C49: الخناق | F49: 27000
A50: =IF(B50<>"",MAX($A$2:A49)+1,"") -> 50 | B50: 2018-11-13 | C50: رشاد | F50: 45000
A51: =IF(B51<>"",MAX($A$2:A50)+1,"") -> 51 | B51: 2018-11-13 | C51: الابيض | D51: عماد خلف الله | E51: 45000 | F51: 45000
A52: =IF(B52<>"",MAX($A$2:A51)+1,"") -> 52 | B52: 2018-11-13 | C52: الدامر | F52: 45000
A53: =IF(B53<>"",MAX($A$2:A52)+1,"") -> 53 | B53: 2018-11-14 | C53: الليري 2 | E53: 27000
A54: =IF(B54<>"",MAX($A$2:A53)+1,"") -> 54 | B54: 2018-11-14 | C54: الدلنج | E54: 45000
A55: =IF(B55<>"",MAX($A$2:A54)+1,"") -> 55 | B55: 2018-11-14 | C55: ابو جبيهة | F55: 45000
A56: =IF(B56<>"",MAX($A$2:A55)+1,"") -> 56 | B56: 2018-11-14 | C56: كالوقي2 | E56: 27000
A57: =IF(B57<>"",MAX($A$2:A56)+1,"") -> 57 | B57: 2018-11-14 | C57: العبيدية2 | F57: 45000
A58: =IF(B58<>"",MAX($A$2:A57)+1,"") -> 58 | B58: 2018-11-14 | C58: الخدق | F58: 26200
A59: =IF(B59<>"",MAX($A$2:A58)+1,"") -> 59 | B59: 2018-11-14 | C59: سودري | F59: 27000
A60: =IF(B60<>"",MAX($A$2:A59)+1,"") -> 60 | B60: 2018-11-14 | C60: غرب بارا | E60: 27000 | F60: 27000
A61: =IF(B61<>"",MAX($A$2:A60)+1,"") -> 61 | B61: 2018-11-15 | C61: الدبيبات | E61: 45000
A62: =IF(B62<>"",MAX($A$2:A61)+1,"") -> 62 | B62: 2018-11-15 | C62: الابيض | D62: عماد خلف الله | F62: 45000
A63: =IF(B63<>"",MAX($A$2:A62)+1,"") -> 63 | B63: 2018-11-15 | C63: الترتر | F63: 27000
A64: =IF(B64<>"",MAX($A$2:A63)+1,"") -> 64 | B64: 2018-11-15 | C64: الدويم | F64: 27000
A65: =IF(B65<>"",MAX($A$2:A64)+1,"") -> 65 | B65: 2018-11-17 | C65: الدبيبات | F65: 45000
A66: =IF(B66<>"",MAX($A$2:A65)+1,"") -> 66 | B66: 2018-11-17 | C66: كالوقي2 | F66: 27000
A67: =IF(B67<>"",MAX($A$2:A66)+1,"") -> 67 | B67: 2018-11-17 | C67: الابيض | D67: عماد خلف الله | F67: 45000
A68: =IF(B68<>"",MAX($A$2:A67)+1,"") -> 68 | B68: 2018-11-17 | C68: الدامر | E68: 27000
A69: =IF(B69<>"",MAX($A$2:A68)+1,"") -> 69 | B69: 2018-11-18 | C69: الليري 2 | F69: 27450
A70: =IF(B70<>"",MAX($A$2:A69)+1,"") -> 70 | B70: 2018-11-18 | C70: المجلد | E70: 45000
A71: =IF(B71<>"",MAX($A$2:A70)+1,"") -> 71 | B71: 2018-11-18 | C71: رشاد | E71: 27000
A72: =IF(B72<>"",MAX($A$2:A71)+1,"") -> 72 | B72: 2018-11-18 | C72: ابو جبيهة | F72: 45000
A73: =IF(B73<>"",MAX($A$2:A72)+1,"") -> 73 | B73: 2018-11-18 | C73: الدبب | E73: 45000
A74: =IF(B74<>"",MAX($A$2:A73)+1,"") -> 74 | B74: 2018-11-18 | C74: الدلنج | D74: اسماعيل مطر | F74: 58500
A75: =IF(B75<>"",MAX($A$2:A74)+1,"") -> 75 | B75: 2018-11-19 | C75: كالوقي2 | E75: 27000
A76: =IF(B76<>"",MAX($A$2:A75)+1,"") -> 76 | B76: 2018-11-19 | C76: الابيض | D76: نور البادية | F76: 45000
A77: =IF(B77<>"",MAX($A$2:A76)+1,"") -> 77 | B77: 2018-11-21 | C77: تلودي | E77: 27000 | F77: 27000
A78: =IF(B78<>"",MAX($A$2:A77)+1,"") -> 78 | B78: 2018-11-21 | C78: الدبب | E78: 45000 | F78: 45000
A79: =IF(B79<>"",MAX($A$2:A78)+1,"") -> 79 | B79: 2018-11-21 | C79: العبيدية2 | E79: 45000
A80: =IF(B80<>"",MAX($A$2:A79)+1,"") -> 80 | B80: 2018-11-21 | C80: سودري | F80: 27000
A81: =IF(B81<>"",MAX($A$2:A80)+1,"") -> 81 | B81: 2018-11-21 | C81: غرب بارا | F81: 27000
A82: =IF(B82<>"",MAX($A$2:A81)+1,"") -> 82 | B82: 2018-11-22 | C82: الليري 2 | F82: 27000
A83: =IF(B83<>"",MAX($A$2:A82)+1,"") -> 83 | B83: 2018-11-22 | C83: العبيدية2 | F83: 45000
A84: =IF(B84<>"",MAX($A$2:A83)+1,"") -> 84 | B84: 2018-11-22 | C84: الابيض | D84: نور البادية | E84: 45000
A85: =IF(B85<>"",MAX($A$2:A84)+1,"") -> 85 | B85: 2018-11-22 | C85: الدبيبات مطر | E85: 45000
A86: =IF(B86<>"",MAX($A$2:A85)+1,"") -> 86 | B86: 22/11/2018 | C86: ام روابة | D86: اسماعيل مطر | F86: 45001
A87: =IF(B87<>"",MAX($A$2:A86)+1,"") -> 87 | B87: 2018-11-24 | C87: الليري 2 | D87: عماد خلف الله | E87: 27000
A88: =IF(B88<>"",MAX($A$2:A87)+1,"") -> 88 | B88: 2018-11-24 | C88: الدبيبات | D88: اسماعيل مطر | F88: 45000
A89: =IF(B89<>"",MAX($A$2:A88)+1,"") -> 89 | B89: 2018-11-24 | C89: الدلنج | D89: محمد الحافظ | E89: 27000
A90: =IF(B90<>"",MAX($A$2:A89)+1,"") -> 90 | B90: 2018-11-25 | C90: الليري 2 | F90: 27000
A91: =IF(B91<>"",MAX($A$2:A90)+1,"") -> 91 | B91: 2018-11-25 | C91: المجلد | E91: 45000 | F91: 45000
A92: =IF(B92<>"",MAX($A$2:A91)+1,"") -> 92 | B92: 2018-11-25 | C92: بابنوسة | F92: 45000
A93: =IF(B93<>"",MAX($A$2:A92)+1,"") -> 93 | B93: 2018-11-25 | C93: الابيض | D93: عماد خلف الله | F93: 45000
A94: =IF(B94<>"",MAX($A$2:A93)+1,"") -> 94 | B94: 2018-11-26 | C94: تلودي | F94: 27000
A95: =IF(B95<>"",MAX($A$2:A94)+1,"") -> 95 | B95: 2018-11-26 | C95: كالوقي2 | E95: 27000
A96: =IF(B96<>"",MAX($A$2:A95)+1,"") -> 96 | B96: 2018-11-26 | C96: سودري | E96: 27000
A97: =IF(B97<>"",MAX($A$2:A96)+1,"") -> 97 | B97: 2018-11-26 | C97: غرب بارا | E97: 27000
A98: =IF(B98<>"",MAX($A$2:A97)+1,"") -> 98 | B98: 2018-11-26 | C98: الاضية | F98: 27000
A99: =IF(B99<>"",MAX($A$2:A98)+1,"") -> 99 | B99: 2018-11-26 | C99: النهود | D99: احمد محمد يس | F99: 27000
A100: =IF(B100<>"",MAX($A$2:A99)+1,"") -> 100 | B100: 2018-11-27 | C100: العبيدية2 | E100: 45000
A101: =IF(B101<>"",MAX($A$2:A100)+1,"") -> 101 | B101: 2018-11-27 | C101: الدامر | F101: 31793
A102: =IF(B102<>"",MAX($A$2:A101)+1,"") -> 102 | B102: 2018-11-27 | C102: الترتر | F102: 27000
A103: =IF(B103<>"",MAX($A$2:A102)+1,"") -> 103 | B103: 2018-11-27 | C103: النهود | D103: محمد الحافظ | F103: 27000
A104: =IF(B104<>"",MAX($A$2:A103)+1,"") -> 104 | B104: 2018-11-28 | C104: بابنوسة | E104: 45000
A105: =IF(B105<>"",MAX($A$2:A104)+1,"") -> 105 | B105: 2018-11-28 | C105: العباسية | F105: 45000
A106: =IF(B106<>"",MAX($A$2:A105)+1,"") -> 106 | B106: 2018-11-28 | C106: ابو جبيهة | F106: 45000
A107: =IF(B107<>"",MAX($A$2:A106)+1,"") -> 107 | B107: 2018-11-28 | C107: العبيدية2 | F107: 44961
A108: =IF(B108<>"",MAX($A$2:A107)+1,"") -> 108 | B108: 2018-11-28 | C108: الدامر | F108: 31942
A109: =IF(B109<>"",MAX($A$2:A108)+1,"") -> 109 | B109: 2018-11-28 | C109: الدويم | F109: 27000
A110: =IF(B110<>"",MAX($A$2:A109)+1,"") -> 110 | B110: 2018-11-28 | C110: سودري | F110: 27000
A111: =IF(B111<>"",MAX($A$2:A110)+1,"") -> 111 | B111: 2018-11-28 | C111: الروجل | F111: 22511
A112: =IF(B112<>"",MAX($A$2:A111)+1,"") -> 112 | B112: 2018-11-28 | C112: تلوجريب | F112: 22530
A113: =IF(B113<>"",MAX($A$2:A112)+1,"") -> 113 | B113: 2018-11-29 | C113: الليري 2 | F113: 54000
A114: =IF(B114<>"",MAX($A$2:A113)+1,"") -> 114 | B114: 2018-11-29 | C114: رشاد | F114: 27000
A115: =IF(B115<>"",MAX($A$2:A114)+1,"") -> 115 | B115: 2018-11-29 | C115: الدبيبات | F115: 45000
A116: =IF(B116<>"",MAX($A$2:A115)+1,"") -> 116 | B116: 2018-11-29 | C116: الابيض | D116: عماد خلف الله | F116: 45000
A117: =IF(B117<>"",MAX($A$2:A116)+1,"") -> 117 | B117: 2018-11-29 | C117: الدلنج | D117: اسماعيل مطر | E117: 45000
A118: =IF(B118<>"",MAX($A$2:A117)+1,"") -> 118 | B118: 2018-11-04 | C118: سودري | F118: 27450
A119: =IF(B119<>"",MAX($A$2:A118)+1,"") -> 119 | B119: 2018-11-08 | C119: الدلنج | D119: اسماعيل مطر | E119: 58500
A120: =IF(B120<>"",MAX($A$2:A119)+1,"") -> 120 | B120: 2018-01-11 | C120: الخندق | D120: احمد محمد يس | E120: 800 | F120: 900 | G120: 1000 | H120: 120 | I120: الابيض
A121: =IF(B121<>"",MAX($A$2:A120)+1,"") -> 121 | B121: 2018-12-10 | E121: 600 | F121: 450 | G121: 210 | H121: 230
A122: =IF(B122<>"",MAX($A$2:A121)+1,"") -> 122 | B122: 15/12/2018 | C122: ابو جبيهة | D122: شركة BZ | E122: 123560 | F122: 165322 | G122: 32654112 | H122: 1365221 | I122: بورتسودان
A123: =IF(B123<>"",MAX($A$2:A122)+1,"") -> 123 | B123: 2018-10-11 | C123: الترتر | D123: عبدالرحيم محمد | E123: 120 | F123: 5266 | G123: 7888 | H123: 7411 | I123: الجيلي
A124: =IF(B124<>"",MAX($A$2:A123)+1,"") -> 124 | B124: 3147-04-07 | C124: الترتر | D124: احمد محمد يس | E124: 55555 | F124: 5555555 | G124: 5555555 | H124: 555555 | I124: الابيض
A125: =IF(B125<>"",MAX($A$2:A124)+1,"") -> 125 | B125: 2018-01-05 | C125: الخندق | D125: عبد الباقي ابراهيم | E125: 120 | F125: 478 | G125: 1528 | H125: 452 | I125: بورتسودان
A126: =IF(B126<>"",MAX($A$2:A125)+1,"") -> 
A127: =IF(B127<>"",MAX($A$2:A126)+1,"") -> 
A128: =IF(B128<>"",MAX($A$2:A127)+1,"") -> 
A129: =IF(B129<>"",MAX($A$2:A128)+1,"") -> 
A130: =IF(B130<>"",MAX($A$2:A129)+1,"") -> 
A131: =IF(B131<>"",MAX($A$2:A130)+1,"") -> 
A132: =IF(B132<>"",MAX($A$2:A131)+1,"") -> 
A133: =IF(B133<>"",MAX($A$2:A132)+1,"") -> 
A134: =IF(B134<>"",MAX($A$2:A133)+1,"") -> 
A135: =IF(B135<>"",MAX($A$2:A134)+1,"") -> 
A136: =IF(B136<>"",MAX($A$2:A135)+1,"") -> 
A137: =IF(B137<>"",MAX($A$2:A136)+1,"") -> 
A138: =IF(B138<>"",MAX($A$2:A137)+1,"") -> 
A139: =IF(B139<>"",MAX($A$2:A138)+1,"") -> 
A140: =IF(B140<>"",MAX($A$2:A139)+1,"") -> 
A141: =IF(B141<>"",MAX($A$2:A140)+1,"") -> 
A142: =IF(B142<>"",MAX($A$2:A141)+1,"") -> 
A143: =IF(B143<>"",MAX($A$2:A142)+1,"") -> 
A144: =IF(B144<>"",MAX($A$2:A143)+1,"") -> 
A145: =IF(B145<>"",MAX($A$2:A144)+1,"") -> 
A146: =IF(B146<>"",MAX($A$2:A145)+1,"") -> 
A147: =IF(B147<>"",MAX($A$2:A146)+1,"") -> 
A148: =IF(B148<>"",MAX($A$2:A147)+1,"") -> 
A149: =IF(B149<>"",MAX($A$2:A148)+1,"") -> 
A150: =IF(B150<>"",MAX($A$2:A149)+1,"") -> 
A151: =IF(B151<>"",MAX($A$2:A150)+1,"") -> 
A152: =IF(B152<>"",MAX($A$2:A151)+1,"") -> 
A153: =IF(B153<>"",MAX($A$2:A152)+1,"") -> 
A154: =IF(B154<>"",MAX($A$2:A153)+1,"") -> 
A155: =IF(B155<>"",MAX($A$2:A154)+1,"") -> 
A156: =IF(B156<>"",MAX($A$2:A155)+1,"") -> 
A157: =IF(B157<>"",MAX($A$2:A156)+1,"") -> 
A158: =IF(B158<>"",MAX($A$2:A157)+1,"") -> 
A159: =IF(B159<>"",MAX($A$2:A158)+1,"") -> 
A160: =IF(B160<>"",MAX($A$2:A159)+1,"") -> 
A161: =IF(B161<>"",MAX($A$2:A160)+1,"") -> 
A162: =IF(B162<>"",MAX($A$2:A161)+1,"") -> 
A163: =IF(B163<>"",MAX($A$2:A162)+1,"") -> 
A164: =IF(B164<>"",MAX($A$2:A163)+1,"") -> 
A165: =IF(B165<>"",MAX($A$2:A164)+1,"") -> 
A166: =IF(B166<>"",MAX($A$2:A165)+1,"") -> 
A167: =IF(B167<>"",MAX($A$2:A166)+1,"") -> 
A168: =IF(B168<>"",MAX($A$2:A167)+1,"") -> 
A169: =IF(B169<>"",MAX($A$2:A168)+1,"") -> 
A170: =IF(B170<>"",MAX($A$2:A169)+1,"") -> 
A171: =IF(B171<>"",MAX($A$2:A170)+1,"") -> 
A172: =IF(B172<>"",MAX($A$2:A171)+1,"") -> 
A173: =IF(B173<>"",MAX($A$2:A172)+1,"") -> 
A174: =IF(B174<>"",MAX($A$2:A173)+1,"") -> 
A175: =IF(B175<>"",MAX($A$2:A174)+1,"") -> 
A176: =IF(B176<>"",MAX($A$2:A175)+1,"") -> 
A177: =IF(B177<>"",MAX($A$2:A176)+1,"") -> 
A178: =IF(B178<>"",MAX($A$2:A177)+1,"") -> 
A179: =IF(B179<>"",MAX($A$2:A178)+1,"") -> 
A180: =IF(B180<>"",MAX($A$2:A179)+1,"") -> 
A181: =IF(B181<>"",MAX($A$2:A180)+1,"") -> 
A182: =IF(B182<>"",MAX($A$2:A181)+1,"") -> 
A183: =IF(B183<>"",MAX($A$2:A182)+1,"") -> 
A184: =IF(B184<>"",MAX($A$2:A183)+1,"") -> 
A185: =IF(B185<>"",MAX($A$2:A184)+1,"") -> 
A186: =IF(B186<>"",MAX($A$2:A185)+1,"") -> 
A187: =IF(B187<>"",MAX($A$2:A186)+1,"") -> 
A188: =IF(B188<>"",MAX($A$2:A187)+1,"") -> 
A189: =IF(B189<>"",MAX($A$2:A188)+1,"") -> 
A190: =IF(B190<>"",MAX($A$2:A189)+1,"") -> 
A191: =IF(B191<>"",MAX($A$2:A190)+1,"") -> 
A192: =IF(B192<>"",MAX($A$2:A191)+1,"") -> 
A193: =IF(B193<>"",MAX($A$2:A192)+1,"") -> 
A194: =IF(B194<>"",MAX($A$2:A193)+1,"") -> 
A195: =IF(B195<>"",MAX($A$2:A194)+1,"") -> 
A196: =IF(B196<>"",MAX($A$2:A195)+1,"") -> 
A197: =IF(B197<>"",MAX($A$2:A196)+1,"") -> 
A198: =IF(B198<>"",MAX($A$2:A197)+1,"") -> 
A199: =IF(B199<>"",MAX($A$2:A198)+1,"") -> 
A200: =IF(B200<>"",MAX($A$2:A199)+1,"") -> 
... 305 more rows

Sheet report
D1: Research Report
A2: Total | E2: =SUBTOTAL(109,E4:E1000) -> 45000 | F2: =SUBTOTAL(109,F4:F1000) -> 45000 | G2: =SUBTOTAL(109,G4:G1000) -> 0 | I2: =SUBTOTAL(103,I4:I1000) -> 0
B3: التاريخ | C3: المحطة | D3: الوكيل | E3: بنزين | F3: جازولين | G3: جازولين تجاري | H3: جاولين زراعي | I3: مستودع
B4: 2018-11-05 | C4: العبيدية2 | D4: معتصم محمد عمر | E4: 45000
B5: 2018-11-07 | C5: العبيدية2 | D5: معتصم محمد عمر | F5: 45000
